[Event "Late-Titled-Tuesday-Blitz-April-30-2024"]
[Site "Chess.com"]
[Date "2024.04.30"]
[Round "2"]
[White "AlexSuv"]
[Black "Cayse"]
[Result "1-0"]
[WhiteElo "2570"]
[BlackElo "2800"]
[TimeControl "180+1"]
[EndTime "14:19:51 PDT"]
[Termination "AlexSuv won on time"]

1. Nf3 {[%clk 0:03:00.9]} 1... d5 {[%clk 0:02:53.7]} 2. b3 {[%clk 0:03:01]} 2...
Nf6 {[%clk 0:02:51.8]} 3. Bb2 {[%clk 0:03:01.3]} 3... e6 {[%clk 0:02:52.5]} 4.
e3 {[%clk 0:03:00]} 4... Be7 {[%clk 0:02:52.7]} 5. c4 {[%clk 0:02:59.8]} 5...
O-O {[%clk 0:02:52.4]} 6. Nc3 {[%clk 0:03:00.1]} 6... c5 {[%clk 0:02:52]} 7.
cxd5 {[%clk 0:02:59.3]} 7... exd5 {[%clk 0:02:49.7]} 8. d4 {[%clk 0:02:59.2]}
8... b6 {[%clk 0:02:50]} 9. Be2 {[%clk 0:02:56.5]} 9... Nc6 {[%clk 0:02:49.7]}
10. O-O {[%clk 0:02:55.1]} 10... Bb7 {[%clk 0:02:48.2]} 11. Rc1 {[%clk
0:02:54.4]} 11... Rc8 {[%clk 0:02:43.6]} 12. dxc5 {[%clk 0:02:53.4]} 12... bxc5
{[%clk 0:02:43.5]} 13. Na4 {[%clk 0:02:53.9]} 13... Ne4 {[%clk 0:02:43.2]} 14.
Nd2 {[%clk 0:02:50.3]} 14... Nxd2 {[%clk 0:02:05.4]} 15. Qxd2 {[%clk 0:02:51.2]}
15... Nb8 {[%clk 0:02:04.4]} 16. Ba3 {[%clk 0:02:42.6]} 16... c4 {[%clk
0:01:14.6]} 17. Bxe7 {[%clk 0:02:41.4]} 17... Qxe7 {[%clk 0:01:13.9]} 18. Bf3
{[%clk 0:02:35.6]} 18... Rfd8 {[%clk 0:01:12.5]} 19. Rfd1 {[%clk 0:02:30.2]}
19... Bc6 {[%clk 0:01:05.2]} 20. Nc3 {[%clk 0:02:23.3]} 20... d4 {[%clk
0:01:01.7]} 21. exd4 {[%clk 0:02:14.8]} 21... Bxf3 {[%clk 0:01:01.7]} 22. gxf3
{[%clk 0:02:15.7]} 22... Nc6 {[%clk 0:01:02]} 23. Qe3 {[%clk 0:02:03]} 23... Qf6
{[%clk 0:00:55.5]} 24. Ne4 {[%clk 0:01:45.2]} 24... Qg6+ {[%clk 0:00:53.7]} 25.
Kh1 {[%clk 0:01:45.8]} 25... cxb3 {[%clk 0:00:54.2]} 26. axb3 {[%clk 0:01:46]}
26... h6 {[%clk 0:00:49.6]} 27. d5 {[%clk 0:01:41.8]} 27... Ne5 {[%clk
0:00:46.7]} 28. Rxc8 {[%clk 0:01:41.6]} 28... Rxc8 {[%clk 0:00:46.9]} 29. d6
{[%clk 0:01:41.6]} 29... Qf5 {[%clk 0:00:40.7]} 30. Rd5 {[%clk 0:01:35.1]} 30...
Qe6 {[%clk 0:00:20.6]} 31. Rc5 {[%clk 0:01:14.6]} 31... Rd8 {[%clk 0:00:19.4]}
32. b4 {[%clk 0:01:08.3]} 32... Qh3 {[%clk 0:00:18.1]} 33. Rc1 {[%clk
0:00:48.3]} 33... Nxf3 {[%clk 0:00:17.4]} 34. Qf4 {[%clk 0:00:36.4]} 34... Ng5
{[%clk 0:00:16.6]} 35. Ng3 {[%clk 0:00:16.4]} 35... Ne6 {[%clk 0:00:14]} 36. Qe5
{[%clk 0:00:15.1]} 36... Qg4 {[%clk 0:00:14.2]} 37. Qe4 {[%clk 0:00:11.2]} 37...
Qg5 {[%clk 0:00:12.9]} 38. Rd1 {[%clk 0:00:10.2]} 38... Qb5 {[%clk 0:00:12.5]}
39. Nf5 {[%clk 0:00:09.4]} 39... Kf8 {[%clk 0:00:12.7]} 40. Ne7 {[%clk
0:00:09.6]} 40... g6 {[%clk 0:00:10]} 41. Nc6 {[%clk 0:00:09.8]} 41... Rd7
{[%clk 0:00:09.4]} 42. Ne5 {[%clk 0:00:09.6]} 42... Rd8 {[%clk 0:00:09.4]} 43.
Nc6 {[%clk 0:00:09.8]} 43... Qb7 {[%clk 0:00:09.6]} 44. f3 {[%clk 0:00:08.5]}
44... Rd7 {[%clk 0:00:09.4]} 45. Ne5 {[%clk 0:00:06.7]} 45... Qxe4 {[%clk
0:00:08.4]} 46. fxe4 {[%clk 0:00:07.6]} 46... Rd8 {[%clk 0:00:08.4]} 47. Nc6
{[%clk 0:00:08.1]} 47... Rc8 {[%clk 0:00:08.6]} 48. Nxa7 {[%clk 0:00:08.1]}
48... Rc4 {[%clk 0:00:08.3]} 49. d7 {[%clk 0:00:08.5]} 49... Ke7 {[%clk
0:00:08.4]} 50. Nc8+ {[%clk 0:00:08.6]} 50... Kd8 {[%clk 0:00:08.7]} 51. Nd6
{[%clk 0:00:09.1]} 51... Rxb4 {[%clk 0:00:09.1]} 52. Nxf7+ {[%clk 0:00:09.2]}
52... Ke7 {[%clk 0:00:09.6]} 53. d8=Q+ {[%clk 0:00:09.6]} 53... Nxd8 {[%clk
0:00:09.8]} 54. Nxd8 {[%clk 0:00:10.5]} 54... Rxe4 {[%clk 0:00:10.1]} 55. Nc6+
{[%clk 0:00:11.1]} 55... Ke6 {[%clk 0:00:10.5]} 56. Nd4+ {[%clk 0:00:11.8]}
56... Kf6 {[%clk 0:00:10]} 57. Nf3 {[%clk 0:00:12]} 57... h5 {[%clk 0:00:09.8]}
58. Kg2 {[%clk 0:00:12.3]} 58... g5 {[%clk 0:00:09.9]} 59. Rd6+ {[%clk 0:00:12]}
59... Kf5 {[%clk 0:00:10.3]} 60. Rd5+ {[%clk 0:00:10.8]} 60... Kf4 {[%clk
0:00:10.7]} 61. Nxg5 {[%clk 0:00:11.3]} 61... Re2+ {[%clk 0:00:10.8]} 62. Kh3
{[%clk 0:00:11.7]} 62... Re3+ {[%clk 0:00:09]} 63. Kh4 {[%clk 0:00:12]} 63...
Re2 {[%clk 0:00:09.3]} 64. h3 {[%clk 0:00:11.3]} 64... Re8 {[%clk 0:00:07.2]}
65. Nh7 {[%clk 0:00:10.2]} 65... Rh8 {[%clk 0:00:06.4]} 66. Rxh5 {[%clk
0:00:10.5]} 66... Kf3 {[%clk 0:00:04.7]} 67. Ng5+ {[%clk 0:00:10.5]} 1-0

[Event "Late-Titled-Tuesday-Blitz-April-30-2024"]
[Site "Chess.com"]
[Date "2024.04.30"]
[Round "2"]
[White "SVijayalakshmi"]
[Black "Abund"]
[Result "1-0"]
[WhiteElo "2562"]
[BlackElo "2772"]
[TimeControl "180+1"]
[EndTime "14:19:54 PDT"]
[Termination "SVijayalakshmi won by checkmate"]

1. d4 {[%clk 0:03:00.9]} 1... d5 {[%clk 0:03:00.1]} 2. c4 {[%clk 0:02:59]} 2...
e6 {[%clk 0:03:00.6]} 3. Nc3 {[%clk 0:02:59]} 3... Nf6 {[%clk 0:03:01.1]} 4.
cxd5 {[%clk 0:02:59.3]} 4... exd5 {[%clk 0:03:02]} 5. Bg5 {[%clk 0:02:59.5]}
5... c6 {[%clk 0:03:02.7]} 6. e3 {[%clk 0:02:59]} 6... h6 {[%clk 0:03:03.3]} 7.
Bh4 {[%clk 0:02:58.5]} 7... Be7 {[%clk 0:03:03.6]} 8. Bd3 {[%clk 0:02:58.5]}
8... O-O {[%clk 0:03:03.9]} 9. Nf3 {[%clk 0:02:58.7]} 9... Ne4 {[%clk
0:03:03.6]} 10. Bxe7 {[%clk 0:02:55.7]} 10... Qxe7 {[%clk 0:03:04.5]} 11. O-O
{[%clk 0:02:55.2]} 11... Bf5 {[%clk 0:03:02.7]} 12. Rc1 {[%clk 0:02:50.8]} 12...
Nd7 {[%clk 0:02:57.6]} 13. Qc2 {[%clk 0:02:48]} 13... Rfe8 {[%clk 0:02:51.8]}
14. Nd2 {[%clk 0:02:46]} 14... Nxc3 {[%clk 0:02:30.3]} 15. bxc3 {[%clk
0:02:34.1]} 15... Bxd3 {[%clk 0:02:28.6]} 16. Qxd3 {[%clk 0:02:34.2]} 16... c5
{[%clk 0:01:56.7]} 17. Qb5 {[%clk 0:02:16.9]} 17... b6 {[%clk 0:01:46]} 18. Nf3
{[%clk 0:02:05.1]} 18... Rac8 {[%clk 0:01:42.8]} 19. c4 {[%clk 0:02:01.8]} 19...
cxd4 {[%clk 0:01:29.9]} 20. Nxd4 {[%clk 0:01:58.5]} 20... Rc5 {[%clk 0:01:27.7]}
21. Qa6 {[%clk 0:01:49.2]} 21... dxc4 {[%clk 0:00:49.2]} 22. Rxc4 {[%clk
0:01:37.8]} 22... Nb8 {[%clk 0:00:38.7]} 23. Qa4 {[%clk 0:01:33.1]} 23... Rec8
{[%clk 0:00:38.4]} 24. Rxc5 {[%clk 0:01:15.7]} 24... Rxc5 {[%clk 0:00:37.8]} 25.
Nb3 {[%clk 0:01:11.4]} 25... Rc8 {[%clk 0:00:35]} 26. h3 {[%clk 0:01:10.3]}
26... Qb7 {[%clk 0:00:29.9]} 27. Rd1 {[%clk 0:01:06.5]} 27... Nc6 {[%clk
0:00:29.6]} 28. Qe4 {[%clk 0:01:03.1]} 28... Qc7 {[%clk 0:00:24.6]} 29. Rc1
{[%clk 0:00:56.5]} 29... Qd7 {[%clk 0:00:24.6]} 30. Qa4 {[%clk 0:00:46.7]} 30...
Qb7 {[%clk 0:00:19]} 31. Qg4 {[%clk 0:00:43.6]} 31... Ne7 {[%clk 0:00:18]} 32.
Rd1 {[%clk 0:00:42.4]} 32... Nd5 {[%clk 0:00:11.6]} 33. Rxd5 {[%clk 0:00:39.4]}
33... Qxd5 {[%clk 0:00:07]} 34. Qxc8+ {[%clk 0:00:39.2]} 34... Kh7 {[%clk
0:00:07.7]} 35. Qc2+ {[%clk 0:00:38.5]} 35... g6 {[%clk 0:00:08.3]} 36. Nd4
{[%clk 0:00:38.2]} 36... h5 {[%clk 0:00:06.2]} 37. a4 {[%clk 0:00:37.9]} 37...
a6 {[%clk 0:00:05.9]} 38. Qb3 {[%clk 0:00:37.9]} 38... Qd7 {[%clk 0:00:03.7]}
39. Qxb6 {[%clk 0:00:36.8]} 39... Qxa4 {[%clk 0:00:04.1]} 40. Qa7 {[%clk
0:00:34.5]} 40... Qc4 {[%clk 0:00:03.7]} 41. Kh2 {[%clk 0:00:31.9]} 41... Qa2
{[%clk 0:00:04]} 42. Kg3 {[%clk 0:00:30.6]} 42... a5 {[%clk 0:00:04.5]} 43. Nf3
{[%clk 0:00:22.6]} 43... a4 {[%clk 0:00:04.2]} 44. Ng5+ {[%clk 0:00:21.5]} 44...
Kg7 {[%clk 0:00:04.2]} 45. Qd4+ {[%clk 0:00:21.5]} 45... Kg8 {[%clk 0:00:04.4]}
46. Ne4 {[%clk 0:00:19.1]} 46... a3 {[%clk 0:00:04.5]} 47. Nf6+ {[%clk 0:00:19]}
47... Kf8 {[%clk 0:00:04.8]} 48. Nd5 {[%clk 0:00:16.7]} 48... Qb2 {[%clk
0:00:04.2]} 49. Qxb2 {[%clk 0:00:15.4]} 49... axb2 {[%clk 0:00:04.5]} 50. Nc3
{[%clk 0:00:16.1]} 50... Ke7 {[%clk 0:00:05.1]} 51. Kf3 {[%clk 0:00:15.9]} 51...
Kd6 {[%clk 0:00:04.3]} 52. Ke4 {[%clk 0:00:16.8]} 52... Kc6 {[%clk 0:00:03.6]}
53. Kd4 {[%clk 0:00:17]} 53... Kd6 {[%clk 0:00:03.6]} 54. e4 {[%clk 0:00:17.4]}
54... Ke6 {[%clk 0:00:04]} 55. f4 {[%clk 0:00:17.6]} 55... h4 {[%clk 0:00:04.4]}
56. Nb1 {[%clk 0:00:16.2]} 56... Kd6 {[%clk 0:00:03.8]} 57. Kc3 {[%clk
0:00:16.2]} 57... Kc5 {[%clk 0:00:04.4]} 58. Nd2 {[%clk 0:00:16.5]} 58... f6
{[%clk 0:00:03.7]} 59. Nb1 {[%clk 0:00:16]} 59... g5 {[%clk 0:00:03.5]} 60. fxg5
{[%clk 0:00:15.8]} 60... fxg5 {[%clk 0:00:04.4]} 61. Kxb2 {[%clk 0:00:15.4]}
61... Kd4 {[%clk 0:00:04.9]} 62. Nc3 {[%clk 0:00:16.1]} 62... Ke5 {[%clk
0:00:03.7]} 63. Kc2 {[%clk 0:00:16.4]} 63... Kf4 {[%clk 0:00:04.3]} 64. Kd3
{[%clk 0:00:16.8]} 64... Kg3 {[%clk 0:00:04.9]} 65. e5 {[%clk 0:00:16.2]} 65...
Kxg2 {[%clk 0:00:05.5]} 66. e6 {[%clk 0:00:16.8]} 66... g4 {[%clk 0:00:06]} 67.
e7 {[%clk 0:00:17.5]} 67... gxh3 {[%clk 0:00:06.2]} 68. e8=Q {[%clk 0:00:18.4]}
68... h2 {[%clk 0:00:06.8]} 69. Qe4+ {[%clk 0:00:18.5]} 69... Kg1 {[%clk
0:00:06.8]} 70. Ne2+ {[%clk 0:00:18]} 70... Kf1 {[%clk 0:00:07.1]} 71. Qh1+
{[%clk 0:00:18]} 71... Kf2 {[%clk 0:00:07.1]} 72. Qxh2+ {[%clk 0:00:18.5]} 72...
Kf1 {[%clk 0:00:07.8]} 73. Qg1# {[%clk 0:00:18.4]} 1-0

[Event "Late-Titled-Tuesday-Blitz-April-30-2024"]
[Site "Chess.com"]
[Date "2024.04.30"]
[Round "2"]
[White "dianamirza"]
[Black "MusicCityMaster"]
[Result "1-0"]
[WhiteElo "1991"]
[BlackElo "2423"]
[TimeControl "180+1"]
[EndTime "14:19:59 PDT"]
[Termination "dianamirza won by resignation"]

1. e4 {[%clk 0:02:58]} 1... e6 {[%clk 0:02:59.9]} 2. d3 {[%clk 0:02:57.6]} 2...
d5 {[%clk 0:03:00.2]} 3. Nd2 {[%clk 0:02:58.5]} 3... Nf6 {[%clk 0:03:00.4]} 4.
g3 {[%clk 0:02:58.8]} 4... Nc6 {[%clk 0:03:00.7]} 5. Bg2 {[%clk 0:02:59]} 5...
Bc5 {[%clk 0:03:01.2]} 6. Ngf3 {[%clk 0:02:59.2]} 6... O-O {[%clk 0:03:01.4]} 7.
O-O {[%clk 0:02:59.5]} 7... dxe4 {[%clk 0:03:02.1]} 8. dxe4 {[%clk 0:02:59.4]}
8... e5 {[%clk 0:03:02.8]} 9. a4 {[%clk 0:02:58.2]} 9... a5 {[%clk 0:03:02.8]}
10. Qe2 {[%clk 0:02:56.6]} 10... Qe7 {[%clk 0:03:02.6]} 11. Nc4 {[%clk
0:02:56.4]} 11... b6 {[%clk 0:03:01.6]} 12. b3 {[%clk 0:02:55.2]} 12... Ba6
{[%clk 0:03:01.6]} 13. Bb2 {[%clk 0:02:54.8]} 13... Rad8 {[%clk 0:02:44.7]} 14.
Rad1 {[%clk 0:02:51.9]} 14... Qe6 {[%clk 0:02:39.9]} 15. Ng5 {[%clk 0:02:47.2]}
15... Qe7 {[%clk 0:02:38.6]} 16. Kh1 {[%clk 0:02:40.6]} 16... h6 {[%clk
0:02:37.3]} 17. Nh3 {[%clk 0:02:37]} 17... Qe6 {[%clk 0:02:37.1]} 18. f4 {[%clk
0:02:25.3]} 18... Bxc4 {[%clk 0:02:28.8]} 19. bxc4 {[%clk 0:02:22.7]} 19... Nd4
{[%clk 0:02:16]} 20. Bxd4 {[%clk 0:01:51.4]} 20... Bxd4 {[%clk 0:02:15.8]} 21.
fxe5 {[%clk 0:01:38.7]} 21... Qxe5 {[%clk 0:02:02.1]} 22. Rf5 {[%clk 0:01:29.9]}
22... Qe7 {[%clk 0:01:55.6]} 23. e5 {[%clk 0:01:24.4]} 23... Nh7 {[%clk
0:01:49.3]} 24. Bd5 {[%clk 0:01:08.1]} 24... Bc5 {[%clk 0:01:37.5]} 25. Rdf1
{[%clk 0:01:00.9]} 25... Kh8 {[%clk 0:01:17.3]} 26. Rxf7 {[%clk 0:00:55]} 26...
Rxf7 {[%clk 0:01:16.4]} 27. Rxf7 {[%clk 0:00:54]} 27... Qe8 {[%clk 0:01:11.7]}
28. Qg4 {[%clk 0:00:46.9]} 28... Qxe5 {[%clk 0:01:10.4]} 29. Nf4 {[%clk
0:00:20.6]} 29... Qe1+ {[%clk 0:01:08.7]} 30. Kg2 {[%clk 0:00:21]} 30... Qg1+
{[%clk 0:01:01.3]} 31. Kh3 {[%clk 0:00:16.8]} 31... Ng5+ {[%clk 0:01:01.5]} 32.
Kh4 {[%clk 0:00:09]} 32... Qxh2+ {[%clk 0:00:57.9]} 33. Nh3 {[%clk 0:00:09.1]}
33... Qxh3+ {[%clk 0:00:34.3]} 34. Qxh3 {[%clk 0:00:10]} 34... Nxh3 {[%clk
0:00:34.8]} 35. Kxh3 {[%clk 0:00:10.9]} 35... Bd6 {[%clk 0:00:34.3]} 36. Kg4
{[%clk 0:00:10.3]} 36... Kh7 {[%clk 0:00:34.1]} 37. Be4+ {[%clk 0:00:09.6]}
37... Kg8 {[%clk 0:00:34]} 38. Bd5 {[%clk 0:00:09.7]} 38... Kh8 {[%clk
0:00:32.7]} 39. Kf3 {[%clk 0:00:07.2]} 39... Re8 {[%clk 0:00:32.7]} 40. g4
{[%clk 0:00:06.6]} 40... Kh7 {[%clk 0:00:31.1]} 41. Be4+ {[%clk 0:00:06.3]}
41... Kg8 {[%clk 0:00:31.4]} 42. Bd5 {[%clk 0:00:06.8]} 42... Rf8 {[%clk
0:00:32]} 43. Rf6+ {[%clk 0:00:03.1]} 43... Kh7 {[%clk 0:00:27.5]} 44. Rxf8
{[%clk 0:00:03.1]} 44... Kg6 {[%clk 0:00:28.1]} 45. Ra8 {[%clk 0:00:01.5]} 45...
Kf6 {[%clk 0:00:26.6]} 46. Bc6 {[%clk 0:00:01.9]} 46... Ke5 {[%clk 0:00:26.9]}
47. Bb5 {[%clk 0:00:02.8]} 47... Kd4 {[%clk 0:00:27.3]} 48. Kf2 {[%clk
0:00:02.1]} 48... Kc3 {[%clk 0:00:27.7]} 49. Kg2 {[%clk 0:00:03]} 49... Kxc2
{[%clk 0:00:25]} 50. Kh3 {[%clk 0:00:03.6]} 50... Kc3 {[%clk 0:00:24.4]} 51. Kh4
{[%clk 0:00:04.5]} 51... Be5 {[%clk 0:00:23.9]} 52. Kh5 {[%clk 0:00:04.8]} 52...
c6 {[%clk 0:00:23.4]} 53. Bxc6 {[%clk 0:00:04.9]} 53... Kxc4 {[%clk 0:00:24.3]}
54. Bb5+ {[%clk 0:00:05.5]} 54... Kc5 {[%clk 0:00:24.3]} 55. Kg6 {[%clk
0:00:06.4]} 55... Kd4 {[%clk 0:00:22.8]} 56. Re8 {[%clk 0:00:06.3]} 56... Bf6
{[%clk 0:00:22.4]} 57. Rb8 {[%clk 0:00:05.2]} 57... Kc5 {[%clk 0:00:21.6]} 58.
Rc8+ {[%clk 0:00:04.7]} 58... Kd5 {[%clk 0:00:20.5]} 59. Rc6 {[%clk 0:00:05]}
59... Bd4 {[%clk 0:00:21]} 60. Kf7 {[%clk 0:00:04.1]} 60... Ke4 {[%clk
0:00:21.3]} 61. Kg6 {[%clk 0:00:04]} 61... Kf4 {[%clk 0:00:21.8]} 62. Rc4 {[%clk
0:00:03.6]} 62... Ke5 {[%clk 0:00:22]} 63. g5 {[%clk 0:00:03.1]} 63... hxg5
{[%clk 0:00:21.5]} 64. Kxg5 {[%clk 0:00:04]} 64... Kd5 {[%clk 0:00:21]} 65. Rc8
{[%clk 0:00:03.6]} 65... Bf6+ {[%clk 0:00:20]} 66. Kg6 {[%clk 0:00:03.6]} 66...
Bd4 {[%clk 0:00:20.9]} 67. Rd8+ {[%clk 0:00:03.6]} 67... Ke4 {[%clk 0:00:21.3]}
68. Rxd4+ {[%clk 0:00:02.8]} 68... Kxd4 {[%clk 0:00:21.8]} 69. Kxg7 {[%clk
0:00:03.7]} 69... Kc5 {[%clk 0:00:21.4]} 70. Kf6 {[%clk 0:00:04.4]} 70... Kd6
{[%clk 0:00:21.8]} 71. Kf5 {[%clk 0:00:04.7]} 71... Kd5 {[%clk 0:00:22.4]} 72.
Kf6 {[%clk 0:00:05.1]} 72... Kd6 {[%clk 0:00:22.9]} 73. Be8 {[%clk 0:00:05.1]}
73... Kc7 {[%clk 0:00:20.4]} 74. Ke6 {[%clk 0:00:05.1]} 74... Kb7 {[%clk
0:00:19.8]} 75. Kd6 {[%clk 0:00:05.6]} 75... Ka6 {[%clk 0:00:20.3]} 76. Kc6
{[%clk 0:00:05.5]} 76... Ka7 {[%clk 0:00:20.8]} 77. Bd7 {[%clk 0:00:05.2]} 77...
Ka6 {[%clk 0:00:20.9]} 78. Bc8+ {[%clk 0:00:05.5]} 78... Ka7 {[%clk 0:00:21.5]}
79. Kc7 {[%clk 0:00:05.5]} 79... Ka8 {[%clk 0:00:18.6]} 80. Kxb6 {[%clk
0:00:05.9]} 80... Kb8 {[%clk 0:00:19.1]} 81. Bd7 {[%clk 0:00:06.3]} 81... Ka8
{[%clk 0:00:19.7]} 82. Kxa5 {[%clk 0:00:06.6]} 82... Kb7 {[%clk 0:00:20.4]} 83.
Bb5 {[%clk 0:00:06.6]} 83... Ka7 {[%clk 0:00:20.8]} 84. Bd3 {[%clk 0:00:06.4]}
84... Kb7 {[%clk 0:00:21.1]} 85. Kb5 {[%clk 0:00:06.9]} 85... Ka7 {[%clk
0:00:21.5]} 86. a5 {[%clk 0:00:07.2]} 86... Kb7 {[%clk 0:00:21.2]} 87. a6+
{[%clk 0:00:07]} 87... Ka7 {[%clk 0:00:22.1]} 88. Ka5 {[%clk 0:00:07.3]} 88...
Kb8 {[%clk 0:00:23]} 89. Kb6 {[%clk 0:00:07.5]} 89... Ka8 {[%clk 0:00:23.9]} 90.
Be4+ {[%clk 0:00:07.9]} 90... Kb8 {[%clk 0:00:24.8]} 91. a7+ {[%clk 0:00:08.2]}
1-0

[Event "Late-Titled-Tuesday-Blitz-April-30-2024"]
[Site "Chess.com"]
[Date "2024.04.30"]
[Round "2"]
[White "Sl4werThanYou"]
[Black "ACollins05"]
[Result "0-1"]
[WhiteElo "2795"]
[BlackElo "2568"]
[TimeControl "180+1"]
[EndTime "14:20:20 PDT"]
[Termination "ACollins05 won by checkmate"]

1. e4 {[%clk 0:03:00.9]} 1... a6 {[%clk 0:02:59.3]} 2. d4 {[%clk 0:02:59.3]}
2... b5 {[%clk 0:02:58.8]} 3. Nf3 {[%clk 0:02:58.5]} 3... Bb7 {[%clk 0:02:58.7]}
4. Bd3 {[%clk 0:02:59.3]} 4... e6 {[%clk 0:02:58.8]} 5. Qe2 {[%clk 0:02:58.7]}
5... c5 {[%clk 0:02:58.6]} 6. c3 {[%clk 0:02:55.7]} 6... Be7 {[%clk 0:02:56.9]}
7. e5 {[%clk 0:02:40.1]} 7... d6 {[%clk 0:02:55.3]} 8. Nbd2 {[%clk 0:02:39.9]}
8... Nc6 {[%clk 0:02:50.6]} 9. a3 {[%clk 0:02:38.7]} 9... Qb6 {[%clk 0:02:47.7]}
10. dxc5 {[%clk 0:02:34.5]} 10... dxc5 {[%clk 0:02:29.9]} 11. Ne4 {[%clk
0:02:34.3]} 11... h6 {[%clk 0:02:21.9]} 12. Bf4 {[%clk 0:02:32.1]} 12... c4
{[%clk 0:02:19.7]} 13. Bc2 {[%clk 0:02:31.7]} 13... Bc5 {[%clk 0:02:14.4]} 14.
O-O {[%clk 0:02:26.9]} 14... g5 {[%clk 0:02:09.9]} 15. Bg3 {[%clk 0:02:22.8]}
15... Nge7 {[%clk 0:02:08.9]} 16. Nf6+ {[%clk 0:02:19.7]} 16... Kd8 {[%clk
0:02:06.9]} 17. Rad1+ {[%clk 0:02:19]} 17... Kc8 {[%clk 0:02:07.2]} 18. Rd7
{[%clk 0:02:11.2]} 18... Rd8 {[%clk 0:02:05.9]} 19. Rfd1 {[%clk 0:02:02.3]}
19... Rxd7 {[%clk 0:02:05.8]} 20. Rxd7 {[%clk 0:02:03.2]} 20... Nb8 {[%clk
0:02:06.1]} 21. Rd1 {[%clk 0:01:50.9]} 21... Nd5 {[%clk 0:02:05.8]} 22. Be4
{[%clk 0:01:45.1]} 22... Nd7 {[%clk 0:01:57.1]} 23. Nxd5 {[%clk 0:01:36.5]}
23... exd5 {[%clk 0:01:56.4]} 24. Bxd5 {[%clk 0:01:37.4]} 24... Bxd5 {[%clk
0:01:56.2]} 25. Rxd5 {[%clk 0:01:38.3]} 25... Qc6 {[%clk 0:01:54.8]} 26. Qd1
{[%clk 0:01:33.7]} 26... Nb6 {[%clk 0:01:52]} 27. Rd2 {[%clk 0:01:26.1]} 27...
Kb7 {[%clk 0:01:51.1]} 28. h4 {[%clk 0:01:20.6]} 28... g4 {[%clk 0:01:48.4]} 29.
Nh2 {[%clk 0:01:21.2]} 29... h5 {[%clk 0:01:48.2]} 30. Nf1 {[%clk 0:01:21.2]}
30... Re8 {[%clk 0:01:43.3]} 31. Kh2 {[%clk 0:01:21.3]} 31... Qe6 {[%clk
0:01:25.4]} 32. Qe2 {[%clk 0:01:09.2]} 32... Nd7 {[%clk 0:01:21.4]} 33. Qe4+
{[%clk 0:01:08.4]} 33... Ka7 {[%clk 0:01:12.6]} 34. Ne3 {[%clk 0:00:57.7]} 34...
Nb6 {[%clk 0:01:01.6]} 35. Nf5 {[%clk 0:00:52.7]} 35... Qc8 {[%clk 0:00:43.8]}
36. Ng7 {[%clk 0:00:19.6]} 36... Rh8 {[%clk 0:00:37.5]} 37. Bf4 {[%clk
0:00:14.1]} 37... Bf8 {[%clk 0:00:34.1]} 38. Nf5 {[%clk 0:00:12.7]} 38... Bc5
{[%clk 0:00:31.3]} 39. Bg5 {[%clk 0:00:12.4]} 39... Qb7 {[%clk 0:00:26.7]} 40.
Qxb7+ {[%clk 0:00:10.4]} 40... Kxb7 {[%clk 0:00:27.6]} 41. Bf6 {[%clk 0:00:11]}
41... Re8 {[%clk 0:00:21.6]} 42. Ng7 {[%clk 0:00:09.2]} 42... Rh8 {[%clk
0:00:19]} 43. Ne6 {[%clk 0:00:07.3]} 43... Rc8 {[%clk 0:00:19.5]} 44. Nf4 {[%clk
0:00:07.3]} 44... Kc6 {[%clk 0:00:16.9]} 45. Nxh5 {[%clk 0:00:07.5]} 45... Nd7
{[%clk 0:00:17.4]} 46. Ng7 {[%clk 0:00:05]} 46... Rg8 {[%clk 0:00:16.2]} 47. h5
{[%clk 0:00:04.9]} 47... Rh8 {[%clk 0:00:16]} 48. Kg3 {[%clk 0:00:03.6]} 48...
Rh7 {[%clk 0:00:15.3]} 49. Kxg4 {[%clk 0:00:03.7]} 49... Bf8 {[%clk 0:00:15.3]}
50. Nf5 {[%clk 0:00:03.9]} 50... Bc5 {[%clk 0:00:14.9]} 51. Kg5 {[%clk
0:00:02.6]} 51... a5 {[%clk 0:00:14.9]} 52. g4 {[%clk 0:00:03.1]} 52... b4
{[%clk 0:00:14.4]} 53. axb4 {[%clk 0:00:03.1]} 53... axb4 {[%clk 0:00:15.3]} 54.
f4 {[%clk 0:00:04]} 54... b3 {[%clk 0:00:13.8]} 55. Ne7+ {[%clk 0:00:04.2]}
55... Bxe7 {[%clk 0:00:12.5]} 56. Bxe7 {[%clk 0:00:05.1]} 56... Nb6 {[%clk
0:00:13.1]} 57. Bf6 {[%clk 0:00:04.7]} 57... Nd5 {[%clk 0:00:11.7]} 58. Kf5
{[%clk 0:00:04.1]} 58... Ne3+ {[%clk 0:00:11.6]} 59. Ke4 {[%clk 0:00:04.6]}
59... Nxg4 {[%clk 0:00:11.8]} 60. Rd4 {[%clk 0:00:03.7]} 60... Kb5 {[%clk
0:00:10.7]} 61. Rd5+ {[%clk 0:00:03.3]} 61... Kc6 {[%clk 0:00:11.1]} 62. Rd6+
{[%clk 0:00:03.5]} 62... Kc5 {[%clk 0:00:10.7]} 63. Kf3 {[%clk 0:00:02.7]} 63...
Nxf6 {[%clk 0:00:09.6]} 64. Rxf6 {[%clk 0:00:03.6]} 64... Rxh5 {[%clk
0:00:09.7]} 65. Rxf7 {[%clk 0:00:04]} 65... Rh2 {[%clk 0:00:10.4]} 66. Rd7
{[%clk 0:00:03.1]} 66... Rxb2 {[%clk 0:00:09.1]} 67. e6 {[%clk 0:00:03.4]} 67...
Rb1 {[%clk 0:00:09.6]} 68. Kf2 {[%clk 0:00:01]} 68... b2 {[%clk 0:00:08.3]} 69.
e7 {[%clk 0:00:01.3]} 69... Rf1+ {[%clk 0:00:07.6]} 70. Kg2 {[%clk 0:00:01.7]}
70... b1=Q {[%clk 0:00:08.5]} 71. e8=Q {[%clk 0:00:01.8]} 71... Rg1+ {[%clk
0:00:08.4]} 72. Kf3 {[%clk 0:00:02.7]} 72... Qf1+ {[%clk 0:00:08]} 73. Ke4
{[%clk 0:00:02.9]} 73... Qe2+ {[%clk 0:00:08]} 74. Kf5 {[%clk 0:00:03.4]} 74...
Qxe8 {[%clk 0:00:08.5]} 75. Rd4 {[%clk 0:00:01]} 75... Qf7+ {[%clk 0:00:07.5]}
76. Ke5 {[%clk 0:00:00.8]} 76... Qe7+ {[%clk 0:00:07.7]} 77. Kf5 {[%clk
0:00:01.7]} 77... Re1 {[%clk 0:00:07.6]} 78. Rd1 {[%clk 0:00:01.6]} 78... Qe6+
{[%clk 0:00:06.4]} 79. Kg5 {[%clk 0:00:01.4]} 79... Rxd1 {[%clk 0:00:06.4]} 80.
f5 {[%clk 0:00:02.3]} 80... Rg1+ {[%clk 0:00:06.5]} 81. Kh4 {[%clk 0:00:02.5]}
81... Qg8 {[%clk 0:00:05.9]} 82. Kh5 {[%clk 0:00:03.4]} 82... Qh8# {[%clk
0:00:06.4]} 0-1